[Event "ESCC-65 2022"]
[Site "Lublin"]
[Date "2022.07.13"]
[Round "9.14"]
[White "Sosnowska, Elzbieta"]
[Black "Sciupokas, Arunas"]
[Result "1/2-1/2"]
[ECO "B03"]
[WhiteElo "1726"]
[BlackElo "1960"]
[Annotator "ChessBase"]
[PlyCount "114"]
[EventDate "2022.07.05"]
[EventType "swiss"]
[EventCountry "POL"]
[SourceTitle "playchess.com"]
[Source "ChessBase"]
[SourceQuality "1"]
[TimeControl "40/5400+30:1800+30"]

1. e4 {[%emt 0:00:03]} Nf6 {[%emt 0:00:14]} 2. e5 {[%emt 0:00:19]} Nd5 {[%emt 0:00:05]} 3. d4 {[%emt 0:00:12]} d6 {[%emt 0:00:15]} 4. c4 {[%emt 0:00:10]} Nb6 {[%emt 0:00:10]} 5. f4 {[%emt 0:00:11]} dxe5 {[%emt 0:03:13]} 6. fxe5 {[%emt 0:00:15]} Bf5 {[%emt 0:01:52]} 7. Nc3 {[%emt 0:00:37]} e6 {[%emt 0:00:47]} 8. Nf3 {[%emt 0:05:02]} Nc6 {[%emt 0:09:48]} 9. Be3 {[%emt 0:04:52]} Be7 {[%emt 0:00:46]} 10. Be2 {[%emt 0:00:15]} O-O {[%emt 0:00:33]} 11. O-O {[%emt 0:00:13]} f6 {[%emt 0:01:10]} 12. exf6 {[%emt 0:00:15]} Bxf6 {[%emt 0:00:09]} 13. Qd2 {[%emt 0:00:10]} Qe7 {[%emt 0:04:32]} 14. Rad1 {[%emt 0:00:19]} Rad8 {[%emt 0:04:57]} 15. Qc1 {[%emt 0:00:25]} h6 {[%emt 0:16:44]} 16. Kh1 {[%emt 0:02:01]} Kh8 {[%emt 0:08:22]} 17. h3 {[%emt 0:00:40]} Bh7 {[%emt 0:05:45]} 18. Bg1 {[%emt 0:03:13]} e5 {[%emt 0:08:59]} 19. dxe5 {[%emt 0:15:37]} Nxe5 {[%emt 0:01:11]} 20. Nd5 {[%emt 0:00:25]} Nxd5 {[%emt 0:06:28]} 21. cxd5 {[%emt 0:00:31]} Nxf3 {[%emt 0:00:39]} 22. Bxf3 {[%emt 0:00:40]} b6 {[%emt 0:06:34]} 23. Bh2 {[%emt 0:02:22]} Rf7 {[%emt 0:02:58]} 24. Bg4 {[%emt 0:09:49]} Bg5 {[%emt 0:06:01]} 25. Rxf7 {[%emt 0:04:50]} Qxf7 {[%emt 0:00:35]} 26. Qxc7 {[%emt 0:00:23]} Qf2 {[%emt 0:04:47]} 27. Be5 {[%emt 0:08:02]} Bf6 {[%emt 0:01:37]} 28. Bf3 {[%emt 0:00:22]} Re8 {[%emt 0:01:56]} 29. Bxf6 {[%emt 0:01:37]} gxf6 {[%emt 0:01:45]} 30. Qc3 {[%emt 0:03:57]} Kg7 {[%emt 0:01:26]} 31. d6 {[%emt 0:00:25]} Qc5 {[%emt 0:00:51]} 32. d7 {[%emt 0:05:40]} Rd8 {[%emt 0:00:05]} 33. Qxc5 {[%emt 0:06:28]} bxc5 {[%emt 0:00:01]} 34. g4 {[%emt 0:01:35]} Bg8 {[%emt 0:00:59]} 35. a3 {[%emt 0:00:45]} Be6 {[%emt 0:00:46]} 36. Bc6 {[%emt 0:00:02]} f5 {[%emt 0:00:26]} 37. Rd6 {[%emt 0:02:29]} Kf7 {[%emt 0:00:24]} 38. gxf5 {[%emt 0:00:02]} Bxf5 {[%emt 0:00:13]} 39. Rxh6 {[%emt 0:00:16]} Ke7 {[%emt 0:00:25]} 40. b4 {[%emt 0:00:00]} cxb4 {[%emt 0:00:00]} 41. axb4 {[%emt 0:04:24]} Rg8 {[%emt 0:14:13]} 42. Kh2 {[%emt 0:00:43]} Rg7 {[%emt 0:01:16]} 43. b5 {[%emt 0:04:14]} Bxd7 {[%emt 0:01:29]} 44. Bxd7 {[%emt 0:00:29]} Kxd7 {[%emt 0:00:07]} 45. Ra6 {[%emt 0:00:10]} Kc8 {[%emt 0:00:40]} 46. b6 {[%emt 0:01:37]} axb6 {[%emt 0:00:38]} 47. Rxb6 {[%emt 0:00:01]} Kd8 {[%emt 0:01:22]} 48. h4 {[%emt 0:06:47]} Ke8 {[%emt 0:00:44]} 49. Kh3 {[%emt 0:01:01]} Kf8 {[%emt 0:01:10]} 50. Rb8+ {[%emt 0:02:45]} Kf7 {[%emt 0:00:41]} 51. h5 {[%emt 0:00:46]} Rg1 {[%emt 0:01:41]} 52. Rb6 {[%emt 0:07:05]} Kg7 {[%emt 0:01:06]} 53. Kh4 {[%emt 0:00:28]} Kh7 {[%emt 0:00:42]} 54. Ra6 {[%emt 0:02:40]} Rg7 {[%emt 0:00:46]} 55. Rb6 {[%emt 0:02:40]} Rg1 {[%emt 0:00:35]} 56. Rb7+ {[%emt 0:00:36]} Kh6 {[%emt 0:01:27]} 57. Rb6+ {[%emt 0:00:04]} Kh7 {[%emt 0:00:06]} 1/2-1/2

[Event "ESCC-65 2022"]
[Site "Lublin"]
[Date "2022.07.13"]
[Round "9.16"]
[White "Gromowski, Stanislaw"]
[Black "Virtanen, Esko"]
[Result "1-0"]
[ECO "B01"]
[WhiteElo "1613"]
[BlackElo "1709"]
[Annotator "NA"]
[PlyCount "45"]
[EventDate "2022.07.05"]
[EventType "swiss"]
[EventCountry "POL"]
[SourceTitle "playchess.com"]
[Source "ChessBase"]
[SourceQuality "1"]
[TimeControl "40/5400+30:1800+30"]

1. e4 {[%emt 0:00:10]} d5 {[%emt 0:00:04]} 2. exd5 {[%emt 0:00:15]} Qxd5 3. Nf3 c6 {[%emt 0:01:06]} 4. d4 {[%emt 0:01:13]} Bg4 {[%emt 0:00:37]} 5. Be2 {[%emt 0:00:26]} e6 {[%emt 0:00:03]} 6. O-O {[%emt 0:00:32]} Nf6 {[%emt 0:00:06]} 7. c4 {[%emt 0:01:30]} Qa5 {[%emt 0:00:02]} 8. Nc3 {[%emt 0:01:42]} Qc7 {[%emt 0:00:09]} 9. Re1 {[%emt 0:00:39]} Be7 {[%emt 0:00:13]} 10. Bg5 {[%emt 0:02:48]} O-O {[%emt 0:00:13]} 11. Rc1 {[%emt 0:01:03]} h6 {[%emt 0:00:22]} 12. Bh4 {[%emt 0:02:15]} Re8 {[%emt 0:08:58]} 13. h3 {[%emt 0:03:15]} Bf5 {[%emt 0:00:42]} 14. d5 {[%emt 0:01:22]} Nbd7 {[%emt 0:04:28]} 15. Nd4 {[%emt 0:00:51]} cxd5 {[%emt 0:06:24]} 16. cxd5 {[%emt 0:00:52]} Qb6 {[%emt 0:00:40]} 17. Nxf5 {[%emt 0:01:31]} exf5 {[%emt 0:00:10]} 18. Qc2 {[%emt 0:03:03]} f4 {[%emt 0:02:34]} 19. Bxf6 {[%emt 0:01:46]} Bxf6 {[%emt 0:00:25]} 20. Rb1 {[%emt 0:00:57]} Rac8 {[%emt 0:00:51]} 21. Bg4 {[%emt 0:01:48]} Rxe1+ {[%emt 0:02:00]} 22. Rxe1 {[%emt 0:00:17]} Rd8 {[%emt 0:00:45]} 23. Bxd7 {[%emt 0:00:19]} 1-0